Cogmind - Beta 16 @@@ ROGUE MODE // 2025.12.11 @ 08:15:55 Player: Red Box Result: Destroyed by GK-6ZB(R) with Subdweller Machine Gun Performance ------------- Evolutions (0) 0 Regions Visited (3) 600 Robots Destroyed (37) 185 Value Destroyed (781) 781 Prototype IDs (1) 20 Alien Tech Used (0) 0 Bonus (185) 185 TOTAL SCORE: 1771 Bonus ------- Follower Combat Kills 185 Cogmind --------- Core Integrity 0/250 Matter 266/300 Energy 33/100 System Corruption 2% Temperature Cool (0) Movement Treading (320) Ox2 Location -10/Subcaves Parts ------- > --- POWER (1) -------- (None) > --- PROPULSION (2) --- Light Treads > --- UTILITY (2) ------ High-capacity Storage Unit Makeshift Light Armor Plating > --- WEAPON (2) ------- Spread Laser Subdweller Machine Gun > --- INVENTORY (20) --- Wheel Subdweller Monowheel Improved Heat Sink Large Battery (200) Experimental Sensor Array Makeshift Thermal Plating Authchip [R/Combat] Makeshift System Restoration Module Spread Laser Subdweller Laser Heavy Assault Rifle Heavy Assault Rifle EMP Blaster EMP Blaster Subdweller Shrapnel Launcher Makeshift Sword Peak State ------------ > --- POWER ------------ Ion Engine > --- PROPULSION ------- Light Treads Wheel > --- UTILITY ---------- High-capacity Storage Unit Experimental Sensor Array > --- WEAPON ----------- Spread Laser Spread Laser > --- INVENTORY -------- Subdweller Power Source Light Treads Wheel Subdweller Monowheel Improved Heat Sink Large Battery Large Matter Pod Authchip [R/Combat] Spread Laser Spread Laser Subdweller Laser Heavy Assault Rifle Heavy Assault Rifle Heavy Assault Rifle Heavy Assault Rifle EMP Blaster EMP Blaster Datajack Mining Laser Signal Generator [Rating: 21] Favorites ----------- Power Ion Engine Engine Ion Engine Propulsion Light Treads Treads Light Treads Leg Aluminum Leg Wheel Wheel Utility Improved Terrain Scanner Device Improved Terrain Scanner Storage High-capacity Storage Unit Protection Makeshift Light Armor Plating Weapon Spread Laser Energy Gun Spread Laser Ballistic Gun Subdweller Machine Gun Launcher EMP Blaster Special Weapon Mining Laser Slashing Weapon Makeshift Sword Special Melee Weapon Datajack Build | -11 -10 -10 -10 ------- Run | Yrd Mat Min Sub Slots Evolved . | . . . . Power . | . . . . Propulsion . | . . . . Utility . | . . . . Weapon . | . . . . Parts Attached 30 | 7 11 3 9 Power 5 | 1 2 . 2 Engine 5 | 1 2 . 2 Core . | . . . . Reactor . | . . . . Propulsion 7 | 2 3 1 1 Treads 4 | . 2 1 1 Leg 2 | 2 . . . Wheel 1 | . 1 . . Hover . | . . . . Flight . | . . . . Utility 6 | 2 2 1 1 Device 2 | 1 . 1 . Storage 3 | 1 2 . . Processor . | . . . . Hackware . | . . . . Protection 1 | . . . 1 Artifact . | . . . . Weapon 12 | 2 4 1 5 Energy Gun 6 | 2 2 . 2 Energy Cannon . | . . . . Ballistic Gun 2 | . . . 2 Ballistic Cannon . | . . . . Launcher 1 | . . 1 . Special Weapon 1 | . 1 . . Impact Weapon . | . . . . Slashing Weapon 1 | . . . 1 Piercing Weapon . | . . . . Special Melee Weapon 1 | . 1 . . Unidentified Prototypes 1 | . . 1 . Parts Lost 9 | . . . 9 Power 3 | . . . 3 Propulsion 2 | . . . 2 Utility 1 | . . . 1 Weapon 3 | . . . 3 Highest Loss Streak 6 | . . . 6 To Critical Strikes 1 | . . . 1 Average Backups 17 | 4 15 19 19 Power . | . 1 1 . Propulsion 3 | 3 3 3 2 Utility 4 | . 3 4 6 Weapon 8 | 1 6 10 9 Tool/Special . | . . . . Unused Backups 21 | . 5 1 15 Power . | . . . . Propulsion 3 | . 1 . 2 Utility 8 | . 2 1 5 Weapon 10 | . 2 . 8 Tool/Special . | . . . . Average Slot Usage (%) 99 | . 99 99 99 Engine 13 | . 14 14 13 Treads 9 | . 4 14 14 Leg 8 | . 18 . . Wheel 9 | . 4 14 13 Device 13 | . 14 13 13 Storage 14 | . 14 14 14 Energy Gun 26 | . 25 27 26 Peak Build Rating 21 | 9 14 21 19 Average Rating 14 | 5 12 14 16 On Entrance 9 | . 9 14 15 Avg Prop Armor Cover (%) 13 | . 12 13 13 Naked Turns . | . . . . Heaviest Build 55 | 12 52 53 55 Greatest Support 20 | 20 20 10 10 Greatest Overweight (x) 5 | 2 5 5 5 Average Overweight (x) 3 | . 2 5 4 Largest Inventory Capacity 20 | 8 20 20 20 Average Capacity 18 | 7 16 20 20 Most Carried 20 | 7 20 20 20 Average Carried 17 | 5 15 19 19 Final Capacity 20 | 8 20 20 20 Final Carried 20 | 7 20 20 16 Class Distribution -------------------- 100% | Mutant Dominant Class ---------------- Mutant | -10/Materials Mutant | -10/Mines Mutant | -10/Subcaves Resources | -11 -10 -10 -10 ----------- Run | Yrd Mat Min Sub Matter Collected 891 | 270 390 98 133 Remotely . | . . . . Salvage Created 903 | 150 239 311 203 Parts 71 | 11 33 16 11 Haulers Intercepted . | . . . . Recyclers Shooed 1 | . . 1 . Parts Field Recycled . | . . . . Retrieved Matter . | . . . . Parts Self-Destructed . | . . . . Prevented . | . . . . Parts Restored . | . . . . Kills | -11 -10 -10 -10 ------- Run | Yrd Mat Min Sub Combat Hostiles Destroyed 27 | . 11 8 8 Guns 24 | . 11 5 8 AOE 3 | . . 3 . Classes Destroyed 9 | 2 5 1 1 Builder 1 | . 1 . . Tunneler 4 | 3 . 1 . Recycler 2 | 1 . 1 . Mechanic 1 | . . 1 . Operator 1 | . 1 . . Watcher 1 | . 1 . . Swarmer 12 | . 7 5 . Grunt 7 | . 4 3 . Subdweller 8 | . . . 8 Best Kill Streak 6 | 3 3 6 4 Combat Bots Only 4 | . 3 3 4 Max Kills in Single Turn 3 | 1 1 3 1 Gunslinging . | . . . . Exploded 2 | . . 2 . Melee . | . . . . Uniques/NPCs Destroyed . | . . . . Combat | -11 -10 -10 -10 -------- Run | Yrd Mat Min Sub Hostile Shots Fired 107 | . 26 31 50 Missed 31 | . 8 6 17 Hits 76 | . 18 25 33 Projectile 76 | . 18 25 33 AOE 2 | . . . 2 Critical Strikes 2 | . . . 2 Damage Taken 1270 | . 157 263 850 Core 255 | . 67 100 88 Absorbed by Shields . | . . . . Regen/Repaired (Parts) 22 | . 22 . . Core Remaining (%) 100 | 100 . . . Volleys Fired 82 | 10 38 12 22 Largest 2 | 2 2 2 2 Hottest 130 | 90 130 130 130 Shots Fired 152 | 20 64 24 44 Gun 132 | 20 50 19 43 Cannon . | . . . . Launcher 6 | . . 5 1 Special 14 | . 14 . . Kinetic 7 | . . . 7 Thermal 139 | 20 64 19 36 Explosive . | . . . . Electromagnetic 6 | . . 5 1 Robot Hit Streak 13 | 5 7 3 13 Robot Miss Streak 6 | 1 6 6 6 Penetration Max . | . . . . Secondary Targets 6 | . 1 1 4 Max Gunslinging Chain 1 | . 1 1 1 Shots Hit Robots 116 | 13 42 20 41 Core Hits 117 | 5 51 25 36 Critical Kills . | . . . . Critical Parts Destroyed . | . . . . Critical Strikes 3 | 2 . . 1 Burn 2 | 2 . . . Destroy 1 | . . . 1 Melee Attacks 13 | . . . 13 Impact . | . . . . Slashing 13 | . . . 13 Piercing . | . . . . Sneak Attacks 1 | . . . 1 Combat Hostiles . | . . . . Follow-up Attacks . | . . . . Damage Inflicted 1917 | 152 421 609 735 Guns 1504 | 152 421 215 716 Cannons . | . . . . Explosions 413 | . . 394 19 Melee . | . . . . Ramming . | . . . . Kinetic 122 | . . . 122 Thermal 1382 | 152 421 215 594 Explosive . | . . . . Electromagnetic 413 | . . 394 19 Impact . | . . . . Slashing . | . . . . Piercing . | . . . . Highest Corruption 2 | . 1 2 2 Average Corruption 1 | . 1 1 2 Corruption Purged . | . . . . Corruption Blocked . | . . . . Effects 40 | . 13 8 19 Message Errors 10 | . 2 2 6 Matter Fused 10 | . 4 1 5 Heat Flow Errors 4 | . 3 1 . Energy Discharges 3 | . 1 . 2 Data Loss (minor) 7 | . 1 3 3 Data Loss (major) 4 | . . 1 3 Misfires 2 | . 2 . . Overload Shots . | . . . . Overflow Damage 19 | . . 19 . Projectiles . | . . . . Explosions 19 | . . 19 . Melee . | . . . . Knockbacks . | . . . . Impact . | . . . . Kinetic . | . . . . Secondary . | . . . . Self-Inflicted Damage 32 | . . 12 20 Shots 2 | . . 1 1 Rammed . | . . . . Targets Rammed . | . . . . Kicked . | . . . . Crushed . | . . . . Highest Temperature 288 | 132 288 236 48 Average Temperature 72 | 53 75 101 14 Received Heat Transfer 198 | . 24 75 99 Siege Activations . | . . . . Martial Activations . | . . . . Shielding Activations . | . . . . Robots Disrupted . | . . . . Combat Hostiles . | . . . . Robots Corrupted . | . . . . Combat Hostiles . | . . . . Parts Fried 3 | . . 3 . Impact Corruptions . | . . . . Robots Melted . | . . . . Combat Hostiles . | . . . . Parts Melted 4 | 1 . . 3 Heat Transferred 2134 | 545 594 255 740 Parts Sabotaged . | . . . . Parts Stolen . | . . . . Parts Stripped . | . . . . Power Chain Reactions . | . . . . Alert | -11 -10 -10 -10 ------- Run | Yrd Mat Min Sub Maximum Alert Level . | . . . . Low Security (%) 100 | 100 100 100 . Level 1 . | . . . . Level 2 . | . . . . Level 3 . | . . . . Level 4 . | . . . . Level 5 . | . . . . High Security . | . . . . Max Security . | . . . . Peak Influence 131 | 10 70 131 . Initial 18 | . . 18 . Average 20 | 1 15 34 . Influence Increases 765 | 20 435 310 . Destroy 0b10 Robot/C 440 | . 220 220 . Destroy 0b10 Robot/NC 55 | 20 15 20 . Destroy Leader 82 | . 52 30 . Allied During Kill 40 | . . 40 . Trap Triggered on 0b10 20 | . 20 . . Successful Hack 58 | . 58 . . Select Force Hacks 60 | . 60 . . Destroy Structure 10 | . 10 . . Influence Decreases 765 | 20 388 275 82 Entered New Map 72 | . . 29 43 Time Decay 693 | 20 388 246 39 Squads Dispatched 4 | . 3 1 . Investigation 3 | . 3 . . Extermination . | . . . . Reinforcement . | . . . . Assault 1 | . . 1 . Garrison . | . . . . Intercept . | . . . . Searches Triggered . | . . . . Construction Impeded . | . . . . Haulers Reinforced . | . . . . Active Scanning Responses . | . . . . Cargo Convoy Interrupts . | . . . . Stealth | -11 -10 -10 -10 --------- Run | Yrd Mat Min Sub Distress Signals 2 | . 2 . . Communications Jammed . | . . . . Distress Signals . | . . . . Times Spotted 47 | . 21 14 12 Peak Tracking Total 4 | . 3 4 4 Tactical Retreats . | . . . . Traps | -11 -10 -10 -10 ------- Run | Yrd Mat Min Sub Traps Triggered 1 | . . . 1 Indirectly . | . . . . Trap Hack Attempts 76 | . 76 . . Triggered . | . . . . Disarmed 1 | . 1 . . Reprogrammed 10 | . 10 . . Reused 2 | . 2 . . Traps Extracted . | . . . . Installed . | . . . . Triggered 2 | . 2 . . Machines | -11 -10 -10 -10 ---------- Run | Yrd Mat Min Sub Machines Disabled . | . . . . Max in Single Turn . | . . . . Machines Repaired . | . . . . Machines Dismantled . | . . . . Machines Sabotaged . | . . . . Overloaded Fab Kills . | . . . . Hacking | -11 -10 -10 -10 --------- Run | Yrd Mat Min Sub Machines Accessed 14 | . 11 . 3 Terminals 8 | . 8 . . Fabricators . | . . . . Repair Stations 1 | . 1 . . Recycling Units 2 | . 2 . . Scanalyzers . | . . . . Garrison Access . | . . . . Total Hacks 55 | . 49 . 6 Successful 36 | . 30 . 6 Failed 19 | . 19 . . Catastrophic 1 | . 1 . . Database Lockouts . | . . . . Manual 36 | . 36 . . Terminals 38 | . 38 . . Fabricators . | . . . . Repair Stations 2 | . 2 . . Recycling Units 9 | . 9 . . Scanalyzers . | . . . . Garrison Access . | . . . . Terminal Hacks 17 | . 11 . 6 Record 4 | . . . 4 Robot Schematic 1 | . 1 . . Robot Analysis 6 | . 6 . . Open Door 1 | . . . 1 Locate Traps 3 | . 3 . . Hauler Manifests 1 | . 1 . . Release Object 1 | . . . 1 Fabricator Hacks . | . . . . Repair Station Hacks 2 | . 2 . . Scan Component 1 | . 1 . . Repair 1 | . 1 . . Recycling Unit Hacks 1 | . 1 . . Retrieve Components 1 | . 1 . . Scanalyzer . | . . . . Garrison Access Hacks . | . . . . Unauthorized Hacks 16 | . 16 . . Terminals 11 | . 11 . . Botnet 5 | . 5 . . Operators 1 | . 1 . . Skim 5 | . 5 . . Fabricators . | . . . . Repair Stations . | . . . . Recycling Units 5 | . 5 . . Reject 1 | . 1 . . Recyclers 1 | . 1 . . Mask 1 | . 1 . . Tunnel 2 | . 2 . . Scanalyzers . | . . . . Garrison Access . | . . . . Data Cores Recovered 1 | . 1 . . Used . | . . . . Hacking Detections 10 | . 10 . . Full Trace Events 1 | . 1 . . Feedback Events 1 | . 1 . . Corruption 1 | . 1 . . Feedback Blocked . | . . . . Robot Schematics Acquired 1 | . 1 . . Robots Built . | . . . . Authchips . | . . . . Time . | . . . . Total Robot Build Rating . | . . . . Part Schematics Acquired . | . . . . Parts Built . | . . . . Authchips . | . . . . Time . | . . . . Total Part Build Rating . | . . . . Part Studies Acquired . | . . . . Parts Repaired 1 | . 1 . . Time 32 | . 32 . . Parts Recycled . | . . . . Recycled Matter . | . . . . Retrieved Matter . | . . . . Retrieved Components 7 | . 7 . . Parts Scanalyzed . | . . . . Part Schematics Acquired . | . . . . Parts Damaged . | . . . . Bothacking | -11 -10 -10 -10 ------------ Run | Yrd Mat Min Sub Used RIF Installer . | . . . . Robots Hacked . | . . . . Non-combat . | . . . . Combat . | . . . . Robot Hacks Applied . | . . . . Relay Couplers Released . | . . . . Fabnet Peak Effective % . | . . . . Robots Rewired . | . . . . Allies Hacked . | . . . . Hacks Repelled . | . . . . Allies | -11 -10 -10 -10 -------- Run | Yrd Mat Min Sub Total Allies 4 | . . 4 . Largest Group 4 | . . 4 4 Highest-Rated Group 71 | . . 71 71 Highest-Rated Ally 31 | . . 31 31 Total Orders 2 | . . . 2 STAY 1 | . . . 1 FOLLOW 1 | . . . 1 Ally Attacks 51 | . . 20 31 Total Damage 651 | . . 178 473 Kills 7 | . . 4 3 Allies Corrupted . | . . . . Allies Melted . | . . . . Intel | -11 -10 -10 -10 ------- Run | Yrd Mat Min Sub Active Infowar (turns) 5251 | 15 2529 1039 1668 Sensors 5 | . . 5 . Terrain 5246 | 15 2529 1034 1668 Robot Analysis Total 6 | . 6 . . Derelict Logs Recovered 2 | . . 2 . Drone Launches . | . . . . Drone Recoveries . | . . . . Exploration | -11 -10 -10 -10 ------------- Run | Yrd Mat Min Sub Turns Passed 5476 | 115 2529 1041 1791 Spaces Moved 2957 | 61 1215 608 1073 Core 14 | 14 . . . Treads . | . . . . Legs 772 | 47 725 . . Wheels 2171 | . 490 608 1073 Hover . | . . . . Flight . | . . . . Fastest Speed 50 | 50 120 155 140 Average Speed 162 | 112 176 155 154 Slowest Speed 260 | 150 260 155 155 Overloaded Moves . | . . . . Propulsion Burnouts . | . . . . Robots Hopped . | . . . . Potential Cave-ins . | . . . . Cave-ins Triggered . | . . . . Exploration Rate (%) 63 | 4 100 98 51 Regions Visited 3 Branch Regions 2 Pre-discovered Areas 3 | . 2 1 . Known Exits Taken 1 | . . 1 . Unknown Exits Taken 2 | 1 1 . . Scrap Searched 3 | . . 1 2 Spaces Dug 14 | . 14 . . Terrain Destroyed 14 | . 14 . . Melee . | . . . . Projectile 14 | . 14 . . AOE . | . . . . Terrain Rammed . | . . . . Walls Destroyed . | . . . . Machines Disabled . | . . . . Actions | -11 -10 -10 -10 --------- Run | Yrd Mat Min Sub Total 3424 | 84 1513 681 1146 Wait 184 | . 127 50 7 Move 2954 | 60 1214 607 1073 Hop . | . . . . Pick Up 41 | 7 23 2 9 Fast Attach 12 | 7 3 1 1 Attach 8 | . 2 . 6 Detach . | . . . . Swap 30 | . 16 6 8 Drop 24 | . 14 3 7 Fire 82 | 10 38 12 22 Melee 13 | . . . 13 Ram . | . . . . Kick . | . . . . Crush . | . . . . Escape Stasis . | . . . . Rewire . | . . . . Trap 76 | . 76 . . Miscellaneous . | . . . . Route ------- -11/Scrapyard -10/Materials (discovered 5 exits: [*Mat x3] / [*Min] / *Sub) -10/Mines (discovered 3 exits: [*Mat x2] / *Sub) -10/Subcaves History --------- Turn | Location | Event 19 | -11/Scrapyard | Discovered new exit (range 15) 116 | -11/Scrapyard | Entered Materials 304 | -10/Materials | Build established: Mutant 338 | -10/Materials | Discovered new exit (range 14) 559 | -10/Materials | Discovered new exit (range 8) 1057 | -10/Materials | Discovered new exit (range 16) 1116 | -10/Materials | Derelicts attacked the area 1169 | -10/Materials | Identified exit to Subcaves 1232 | -10/Materials | Learned Storage emergency access door positions 1329 | -10/Materials | Learned location of 1 exit from Storage 1361 | -10/Materials | Learned Storage security intel 1404 | -10/Materials | Learned Storage emergency access door positions 1457 | -10/Materials | Loaded intel: 12 trap records 1697 | -10/Materials | Discovered new exit (range 4) 2009 | -10/Materials | Repaired Spread Laser 2645 | -10/Materials | Entered Mines 2746 | -10/Mines | Discovered exit to Subcaves (range 10) 2758 | -10/Mines | Learned location of Zion (-7) 2799 | -10/Mines | Discovered new exit (range 7) 2958 | -10/Mines | Learned Materials emergency access door positions 2966 | -10/Mines | Met a Derelict testing a Signal Generator 2977 | -10/Mines | Found Signal Generator 3047 | -10/Mines | Found a damaged Exp. Sensor Array with a note attached 3050 | -10/Mines | Found Prototype Device 3050 | -10/Mines | Identified Exp. Sensor Array 3157 | -10/Mines | Discovered new exit (range 7) 3179 | -10/Mines | Assisted by bots powering up and referring to "LRC-V3" 3327 | -10/Mines | Core integrity fell below 50% 3686 | -10/Mines | Entered Subcaves 3686 | -10/Subcaves | Accompanied by 4 allies 3857 | -10/Subcaves | Disturbed a concealed Subdweller 4318 | -10/Subcaves | Visited Clippyterm 4323 | -10/Subcaves | Learned Factory emergency access door positions 4323 | -10/Subcaves | Learned Research security intel 4982 | -10/Subcaves | Core integrity fell below 20% 5447 | -10/Subcaves | Ambushed by Subdweller buried in earth 5447 | -10/Subcaves | Ambushed by Subdweller buried in earth 5477 | -10/Subcaves | Destroyed by GK-6ZB(R) with Subdweller Machine Gun Last Messages --------------- 05453_ D0-B46(R) affixes Scrap Shield Fragment to Scrap Shield. 05454_ Trooper 1a destroyed. 05455_ Sub. Optics melted. 05455_ D0-B46(R) destroyed. 05455_ Sub. Power Source destroyed. 05456_ Spread Laser destroyed. 05457_ Critical hit (Destroy). 05460_ Lgt. Treads destroyed. 05463_ GK-6ZB(R) suffers critical hit (Destroy). 05463_ 9A-M38(R) affixes Scrap Shield Fragment to Scrap Shield. 05466_ 9A-M38(R) destroyed. 05466_ Switching to secondary target: T7-WZX(R). 05467_ Sub. Machine Gun destroyed. 05470_ GK-6ZB(R) affixes Scrap Shield Fragment to Scrap Shield. 05473_ Sub. Optics melted. 05473_ T7-WZX(R) destroyed. 05473_ Switching to secondary target: GK-6ZB(R). Map ----- +----------------------------------------------------+ | ????? """ ###"" "## #?###?????????#??? | | ????? """"""" " """" #### ###?###????#??????? | | ????? ? """""""" #??######## ##?#???????#? | | ??????? ##???## #??????????? | | ?????? ### ##??# #??????????? | | ??????## #??# #?###### #??????????? | | ???????#### ??## ##??????## #??????????? | | ??????????## ??# ##???????## ###????????? | | ??????????### #??#### ##?######## ##???????? | | ????????????###??????# ##?## && #???????? | | ???????????#??#?????## ### &% #???????? | | ????????????????????# ### ! & #???????? | | ????????????????????# ### ### ####???????? | | ????????????????????## ### #??????????? | | ???????????#??????#??## #?## ##?????????? | | ??????????????????????## ### #?????????? | | ???????????????????#?### ## ##?????????? | | ???????????????#????? && #### #####??????????? | | ?????????????????????#&%##??#" #??????????????? | | ????????????????????## &???#""## #??????????????? | | ???????????????????## #### ### ##?????????????? | | ???????????????????# ; #; # ##????????????? | | ???????????????????# ; #????????????? | | ???????????????????## ##???????????? | | ????????????????????# % #???????????? | | ????????????????????# @ % # #??????????? | | ???????????????????# % ### #??????????? | | ???????????????????##; =% #?## ##??????????? | | ????????????????????# ; [R!!;;#???# #???????????? | | ????????????????????## ;;]% ##????###???????????? | | ?????????????????????##### * #???????????????????? | | ?????????????????????????? " ???????????????????? | | ??????????????????????????# " #??????????????????? | | ??????????????????????????? " #??????????????????? | | ??????????????????????????? #??????????????????? | | ??????????????????????????? ??????????????????? | | ??????????????????????????? ? ??????????????????? | | ???????????????????????????? #???????????????????? | | ????????????????????????????#????????????????????? | | ?????????????????????????????????????????????????? | | ?????????????????????????????????????????????????? | | ?????????????????????????????????????????????????? | | ?????????????????????????????????????????????????? | | ?????????????????????????????????????????????????? | | ?????????????????????????????????????????????????? | | ?????????????????????????????????????????????????? | | ?????????????????????????????????????????????????? | | ?????????????????????????????????????????????????? | | ?????????????????????????????????????????????????? | | ?????????????????????????????????????????????????? | +----------------------------------------------------+ Best States ------------- Heat Dissipation 25 Energy Generation 10 Energy Capacity 250 Matter Stores 300 Matter Capacity 300 Sight Range 16 Terrain Scan Range 16 Terrain Scan Density 10 Armor Coverage 100 Evasion (%) 55 Recoil Reduction 1 Authchip Count 1 Item Schematics ----------------- None Robot Schematics ------------------ O-16 Technician | -10/Materials | Hacked Fabricated ------------ Nothing Repaired ---------- Spread Laser | 72% | -10/Materials Studied --------- None Alien Tech Used ----------------- None Achievements -------------- None Challenges ------------ None Game ------ Seed CoordinationFlyingCorpse Manual? 0 Play Time 00:30:16 Cumulative 854.0 hours Start 2025.12.11 @ 07:45:13 End 2025.12.11 @ 08:15:55 Sessions 1 Manual Loads 0 Difficulty Rogue Special Mode None Game No. 550 Rogue 550 Adventurer 0 Explorer 0 Win Type - Total 1 Types 1/0/0/0/0/0/0/0/0/0 Lore% 78 Gallery% 72 Achievement% 52 Wizard Run 0 Options --------- Layout 1 ASCII 0 Keyboard 0 Movement Mouse Keybinds 0 Fullscreen 1 Font 20/SmallcapsGlow Map View 54x42 Zoom Use 0% Tactical HUD 1 Map Filters NONE Filters NONE Steam 1 RUN: 31be8aac-a0d5-4f9c-ae32-36bce289dc7c